fUSD/lending_fUSD_20260327
["ID","MTS","AMOUNT","RATE_DAILY","PERIOD"]
[418949734,1774623044945,-500.0,0.00041095,17]
[418949735,1774623044955,-500.0,0.00041095,17]
[418949736,1774623044964,-214.0,0.00041096,30]
[418949737,1774623044975,-1852.42,0.00041118,2]
[418949738,1774623044984,-4463.27130734,0.00041222,15]
[418949739,1774623044994,-6567.74035326,0.00041267,15]
[418949740,1774623045003,-212.45462385,0.00041269,8]
[418949741,1774623045014,-500.0,0.00041369,17]
[418949742,1774623045023,-197.46741958,0.00041369,17]
[418949743,1774623045032,-500.0,0.00041369,7]
[418949744,1774623045042,-500.0,0.00041369,17]
[418949745,1774623045051,-2491.55,0.00041369,2]
[418949746,1774623045060,-500.0,0.00041369,17]
[418949747,1774623045070,-500.0,0.00041369,17]
[418949748,1774623045079,-500.0,0.00041369,17]
[418949749,1774623045089,-500.0,0.00041369,17]
[418949750,1774623045098,-500.0,0.00041369,17]
[418949751,1774623045107,-402.43357323,0.00041369,17]
[418949752,1774623045116,-500.0,0.00041369,17]
[418949753,1774623045127,-500.0,0.00041369,17]
[418949754,1774623045136,-500.0,0.00041369,17]
[418949755,1774623045146,-500.0,0.00041369,17]
[418949756,1774623045156,-500.0,0.00041369,17]
[418949757,1774623045165,-826.75,0.00041369,17]
[418949758,1774623045174,-500.0,0.00041369,17]
[418949759,1774623045183,-500.0,0.00041369,17]
[418949760,1774623045192,-500.0,0.00041369,17]
[418949761,1774623045202,-688.67,0.00041369,17]
[418949762,1774623045211,-1689.7,0.00041369,17]
[418949763,1774623045221,-449.21021429,0.00041369,17]
[418949764,1774623045231,-500.0,0.00041369,17]
[418949765,1774623045240,-500.0,0.00041369,17]
[418949766,1774623045250,-500.0,0.00041369,17]
[418949767,1774623045259,-500.0,0.00041369,17]
[418949768,1774623045269,-500.0,0.00041369,17]
[418949769,1774623045278,-293.89867513,0.00041369,17]
[418949770,1774623045288,-500.0,0.00041369,17]
[418949771,1774623045298,-500.0,0.00041369,17]
[418949772,1774623045307,-500.0,0.00041369,17]
[418949773,1774623045317,-500.0,0.00041369,17]
[418949774,1774623045327,-500.0,0.00041369,17]
[418949775,1774623045337,-512.22,0.00041369,17]
[418949776,1774623045347,-500.0,0.00041369,2]
[418949777,1774623045357,-500.0,0.00041369,17]
[418949778,1774623045367,-500.0,0.00041369,17]
[418949779,1774623045376,-1188.11,0.00041369,2]
[418949780,1774623045386,-500.0,0.00041369,2]
[418949781,1774623045395,-915.61010547,0.00041561,2]
[418949782,1774623045407,-500.0,0.00041643,17]
[418949783,1774623045416,-500.0,0.00041643,7]
[418949784,1774623045426,-500.0,0.00041643,17]
[418949785,1774623045435,-2491.55,0.00041643,2]
[418949786,1774623045445,-500.0,0.00041643,17]
[418949787,1774623045454,-500.0,0.00041643,17]
[418949788,1774623045464,-500.0,0.00041643,17]
[418949789,1774623045473,-352.56,0.00041643,17]
[418949790,1774623045482,-500.0,0.00041643,17]
[418949791,1774623045491,-500.0,0.00041643,17]
[418949792,1774623045502,-500.0,0.00041643,17]
[418949793,1774623045512,-500.0,0.00041643,17]
[418949794,1774623045522,-500.0,0.00041643,17]
[418949795,1774623045532,-500.0,0.00041643,17]
[418949796,1774623045542,-826.75,0.00041643,17]
[418949797,1774623045551,-500.0,0.00041643,17]
[418949798,1774623045561,-541.26598347,0.00041643,17]
[418949799,1774623045570,-500.0,0.00041643,17]
[418949800,1774623045580,-688.67,0.00041643,17]
[418949801,1774623045589,-1689.7,0.00041643,17]
[418949802,1774623045598,-500.0,0.00041643,17]
[418949803,1774623045608,-500.0,0.00041643,17]
[418949804,1774623045617,-154.79155944,0.00041643,17]
[418949805,1774623045626,-500.0,0.00041643,17]
[418949806,1774623045636,-500.0,0.00041643,17]
[418949807,1774623045645,-500.0,0.00041643,17]
[418949808,1774623045655,-500.0,0.00041643,17]
[418949809,1774623045664,-500.0,0.00041643,17]
[418949810,1774623045674,-210.53133424,0.00041643,17]
[418949811,1774623045683,-500.0,0.00041643,17]
[418949812,1774623045692,-512.22,0.00041643,17]
[418949813,1774623045701,-500.0,0.00041643,2]
[418949814,1774623045711,-500.0,0.00041643,17]
[418949815,1774623045720,-500.0,0.00041643,17]
[418949816,1774623045729,-971.11770177,0.00041643,2]
[418949818,1774623046237,-394.56000001,0.00041095,17]
[418949819,1774623046249,-105.43999999,0.00041095,17]
[418949820,1774623046258,-500.0,0.00041369,17]
[418949821,1774623046268,-16.12070426,0.00041643,2]
[418949822,1774623046306,-200.87159397,0.00041643,2]
[418949823,1774623046315,-500.0,0.00041643,2]
[418949824,1774623046324,-155.14444767,0.00041643,17]
[418949825,1774623046336,-249.31945371,0.00041643,17]
[418949826,1774623046345,-298.12054629,0.00041744,15]
[418949827,1774623046386,-657.52,0.00041744,15]
[418949828,1774623046462,-3507.63076105,0.00041744,15]
[418949829,1774623046471,-6567.74035326,0.00041783,15]
[418949830,1774623046480,-189.86473612,0.00041849,5]
[418949831,1774623046490,-835.88162989,0.0004185,120]
[418949832,1774623046502,-1194.67247834,0.0004185,120]
[418949838,1774623382804,158.0,0.0001619,120]
[418949845,1774624163635,182.09492,0.00016,2]
[418949846,1774624171134,-3296.72,0.00016,2]
[418949854,1774624232111,-1284.18884217,9.5e-05,3]
[418949855,1774624232123,-2772.49444839,9.5e-05,3]
[418949856,1774624232137,-341.348914,9.5e-05,3]
[418949857,1774624232220,-1009.784997,9.5e-05,3]
[418949858,1774624232232,-871.14161176,9.5e-05,3]
[418949859,1774624232243,-2625.65939992,9.5e-05,3]
[418949860,1774624232255,-975.42716393,9.5e-05,3]
[418949861,1774624232300,-555.95984743,9.5e-05,3]
[418949862,1774624232312,-2642.63241699,9.5e-05,3]
[418949863,1774624232323,-1159.94357071,9.5e-05,3]
[418949864,1774624232335,-3305.45,9.5e-05,3]
[418949865,1774624232346,-1933.86916611,9.5e-05,3]
[418949866,1774624232358,-3209.51724405,9.5e-05,3]
[418949867,1774624232370,-987.75961641,9.5e-05,3]
[418949868,1774624232395,-900.0,9.5e-05,3]
[418949869,1774624232407,-571.68055395,9.5e-05,3]
[418949890,1774624240433,-873.21225147,9.5e-05,3]
[418949892,1774624240876,-564021.03913152,9.5e-05,3]
[418949893,1774624240886,-666.0,0.00015999,2]
[418949894,1774624240896,-893713.80520356,0.00016,2]
[418949895,1774624240906,-222.42,0.00016,2]
[418949896,1774624240915,-212.45462385,0.000249,4]
[418949897,1774624240925,-150.0,0.00025,2]
[418949898,1774624240934,-229.28162892,0.00030087,7]
[418949899,1774624240944,-1175.77990054,0.00033209,2]
[418949900,1774624240953,-297.191,0.0003349,2]
[418949901,1774624240962,-1175.77990047,0.00035079,2]
[418949902,1774624240972,-1175.77990047,0.00036949,2]
[418949903,1774624240981,-493.0,0.00037366,2]
[418949904,1774624240991,-166.66,0.00038299,30]
[418949905,1774624241001,-265.0,0.00038356,2]
[418949906,1774624241011,-269.0,0.00038356,2]
[418949907,1774624241020,-268.0,0.00038356,2]
[418949908,1774624241030,-1175.77990047,0.00038819,2]
[418949909,1774624241040,-166.66,0.00039105,30]
[418949910,1774624241049,-166.66,0.00039911,30]
[418949911,1774624241213,-300.0,0.0004,120]
[418949912,1774624241223,-225.62,0.00040381,2]
[418949913,1774624241234,-1052.27,0.00040392,120]
[418949914,1774624241243,-988.24,0.00040448,10]
[418949915,1774624241253,-823.53,0.00040448,10]
[418949916,1774624241262,-823.53,0.00040448,10]
[418949917,1774624241272,-549.02,0.00040448,10]
[418949918,1774624241282,-367.30142449,0.00040457,2]
[418949919,1774624241293,-5000.0,0.00040458,120]
[418949920,1774624241302,-164.37,0.00040662,2]
[418949921,1774624241312,-1175.77990047,0.0004069,28]
[418949922,1774624241322,-1000.0,0.000407,120]
[418949923,1774624241331,-1000.0,0.000407,2]
[418949924,1774624241340,-222.42,0.000407,30]
[418949925,1774624241350,-150.0,0.00040713,2]
[418949926,1774624241359,-166.66,0.00040718,30]
[418949927,1774624241369,-847.0,0.00040809,11]
[418949928,1774624241379,-1000.0,0.0004085,120]
[418949929,1774624241389,-525.8613,0.0004085,2]
[418949930,1774624241398,-300.0,0.00040864,2]
[418949931,1774624241407,-168562.0,0.0004095,60]
[418949932,1774624241417,-951.389,0.00041094,60]
[418949933,1774624241426,-594.99338794,0.00041095,17]
[418949934,1774624241436,-500.0,0.00041095,17]
[418949935,1774624241445,-500.0,0.00041095,17]
[418949936,1774624241455,-500.0,0.00041095,17]
[418949937,1774624241465,-525.49089635,0.00041095,17]
[418949938,1774624241474,-500.0,0.00041095,17]
[418949939,1774624241483,-500.0,0.00041095,17]
[418949940,1774624241493,-500.0,0.00041095,17]
[418949941,1774624241503,-500.0,0.00041095,17]
[418949942,1774624241513,-500.0,0.00041095,17]
[418949943,1774624241522,-500.0,0.00041095,17]
[418949944,1774624241532,-500.0,0.00041095,17]
[418949945,1774624241542,-500.0,0.00041095,17]
[418949946,1774624241552,-500.0,0.00041095,17]
[418949947,1774624241562,-500.0,0.00041095,17]
[418949948,1774624241572,-500.0,0.00041095,17]
[418949949,1774624241581,-500.0,0.00041095,17]
[418949950,1774624241591,-500.0,0.00041095,17]
[418949951,1774624241601,-500.0,0.00041095,17]
[418949952,1774624241610,-500.0,0.00041095,17]
[418949953,1774624241619,-500.0,0.00041095,17]
[418949954,1774624241629,-527.74769207,0.00041095,17]
[418949955,1774624241638,-500.0,0.00041095,17]
[418949956,1774624241648,-500.0,0.00041095,17]
[418949957,1774624241658,-500.0,0.00041095,17]
[418949958,1774624241669,-500.0,0.00041095,17]
[418949959,1774624241678,-500.0,0.00041095,17]
[418949960,1774624241687,-500.0,0.00041095,17]
[418949961,1774624241697,-500.0,0.00041095,17]
[418949962,1774624241706,-212.0,0.00041096,30]
[418949963,1774624241715,-208.0,0.00041096,30]
[418949964,1774624241725,-205.0,0.00041096,30]
[418949965,1774624241734,-199.0,0.00041096,30]
[418949966,1774624241744,-202.0,0.00041096,30]
[418949967,1774624241754,-168.0,0.0004113,2]
[418949968,1774624241764,-221.67635368,0.00041369,17]
[418949969,1774624241774,-2000.0,0.000414,2]
[418949970,1774624241783,-11939.31256302,0.000415,120]
[418949971,1774624241793,-166.66,0.00041524,30]
[418949972,1774624241802,-150.0,0.00041529,30]
[418949973,1774624241811,-182.53054,0.0004153,120]
[418949974,1774624241820,-182.53054,0.0004153,120]
[418949975,1774624241831,-182.53054,0.0004153,120]
[418949976,1774624241841,-182.53054,0.0004153,120]
[418949977,1774624241850,-182.53055,0.0004153,120]
[418949978,1774624241859,-182.53054,0.0004153,120]
[418949979,1774624241869,-610.40673698,0.00041561,2]
[418949980,1774624241878,-2635.0000001,0.00041682,2]
[418949981,1774624241888,-2438.1200386,0.00041682,2]
[418949982,1774624241898,-182.91,0.00041793,30]
[418949983,1774624241908,-1088.80181132,0.000418,120]
[418949984,1774624241918,-500.0,0.00041848,2]
[418949985,1774624241927,-500.0,0.00041849,120]
[418949986,1774624241937,-6888.0,0.00041849,120]
[418949987,1774624241946,-500.0,0.00041849,120]
[418949988,1774624241955,-7142.856,0.00041849,120]
[418949989,1774624241964,-500.0,0.00041849,120]
[418949990,1774624241974,-7407.141672,0.00041849,120]
[418949991,1774624241983,-500.0,0.00041849,120]
[418949992,1774624241992,-4420.63875449,0.00041849,120]
[418949993,1774624242004,-3260.56715937,0.00041849,120]
[418949994,1774624242014,-7965.41053268,0.00041849,120]
[418949995,1774624242023,-500.0,0.00041849,120]
[418949996,1774624242032,-7037.52005505,0.00041849,120]
[418949997,1774624242041,-500.0,0.00041849,120]
[418949998,1774624242050,-151.0,0.00041849,120]
[418949999,1774624242060,-151.0,0.00041849,120]
[418950000,1774624242069,-151.0,0.00041849,120]
[418950001,1774624242078,-151.0,0.00041849,120]
[418950002,1774624242088,-151.0,0.00041849,120]
[418950003,1774624242096,-151.0,0.00041849,120]
[418950004,1774624242106,-288.88417803,0.00041849,120]
[418950005,1774624242115,-289.05227741,0.00041849,120]
[418950006,1774624242125,-4597.4182473,0.0004185,15]
[418950007,1774624242135,-500.0,0.0004185,120]
[418950008,1774624242144,-500.0,0.00041853,2]
[418950009,1774624242154,-500.0,0.00041853,2]
[418950010,1774624242163,-500.0,0.00041853,2]
[418950011,1774624242172,-500.0,0.00041853,2]
[418950012,1774624242181,-352.82091102,0.00041853,2]
[418950013,1774624242190,-500.0,0.00041853,2]
[418950014,1774624242199,-500.0,0.00041853,2]
[418950015,1774624242208,-500.0,0.00041853,2]
[418950016,1774624242217,-500.0,0.00041853,2]
[418950017,1774624242226,-500.0,0.00041853,2]
[418950018,1774624242235,-500.0,0.00041853,2]
[418950019,1774624242244,-500.0,0.00041853,2]
[418950020,1774624242253,-500.0,0.00041853,2]
[418950021,1774624242262,-500.0,0.00041853,2]
[418950022,1774624242271,-500.0,0.00041853,2]
[418950023,1774624242280,-500.0,0.00041853,2]
[418950024,1774624242289,-500.0,0.00041853,2]
[418950025,1774624242298,-500.0,0.00041853,2]
[418950026,1774624242307,-500.0,0.00041853,2]
[418950027,1774624242316,-500.0,0.00041853,2]
[418950028,1774624242325,-500.0,0.00041853,2]
[418950029,1774624242334,-250.0,0.00041853,2]
[418950030,1774624242343,-500.0,0.00041853,2]
[418950031,1774624242352,-250.0,0.00041853,2]
[418950032,1774624242361,-500.0,0.00041853,2]
[418950033,1774624242370,-250.0,0.00041853,2]
[418950034,1774624242380,-151.0,0.00041853,2]
[418950035,1774624242389,-500.0,0.00041853,2]
[418950036,1774624242399,-250.0,0.00041853,2]
[418950037,1774624242407,-250.0,0.00041853,2]
[418950038,1774624242417,-250.0,0.00041853,2]
[418950039,1774624242427,-250.0,0.00041918,91]
[418950040,1774624242435,-3741.2241868,0.00041946,2]
[418950041,1774624242445,-1549.79,0.00041948,120]
[418950042,1774624242454,-66509.89122909,0.0004195,30]
[418950049,1774624243427,-6250.77960331,0.0004195,30]
[418950051,1774624243501,-506.38888323,0.0004195,30]
[418950052,1774624243512,-1172.96774003,0.0004195,30]
[418950053,1774624243524,-873.39,0.0004195,30]
[418950055,1774624243703,-1294.36061484,0.0004195,30]
[418950058,1774624244162,-19387.09174759,0.0004195,30]
[418950059,1774624244174,-4976.42433161,0.0004195,30]
[418950083,1774624246467,-1498.2,0.0004195,30]
[418950084,1774624246646,-406.93782465,0.00041561,2]
[418950085,1774624246655,-2217.78376472,0.0004195,30]
[418950086,1774624246667,-1320.2299,0.0004195,30]
[418950087,1774624246678,-46546.68716714,0.0004195,30]
[418950088,1774624246688,-1000.0,0.0004195,120]
[418950089,1774624246697,-2699.25,0.00042,120]
[418950090,1774624246706,-1422.15,0.00042,120]
[418950091,1774624246715,-1000.0,0.00042,120]
[418950092,1774624246725,-222.42,0.00042,30]
[418950093,1774624246735,-710.0,0.00042057,7]
[418950094,1774624246745,-179.73110346,0.0004206,17]
[418950095,1774624246755,-500.0,0.0004206,2]
[418950096,1774624246765,-1351.54,0.0004206,17]
[418950097,1774624246775,-500.0,0.0004206,17]
[418950098,1774624246785,-238.63304733,0.0004206,17]
[418950099,1774624246794,-500.0,0.0004206,17]
[418950100,1774624246803,-500.0,0.0004206,17]
[418950101,1774624246813,-898.2,0.00042061,2]
[418950102,1774624246832,-913.6426266,0.00042061,2]
[418950103,1774624246843,-898.2,0.00042061,2]
[418950104,1774624246853,-913.6426266,0.00042061,2]
[418950105,1774624246862,-913.6426266,0.00042061,2]
[418950107,1774624246872,-898.2,0.00042061,2]
[418950108,1774624246882,-913.6426266,0.00042061,2]
[418950109,1774624246892,-898.2,0.00042061,2]
[418950110,1774624246902,-913.6426266,0.00042061,2]
[418950111,1774624246912,-898.2,0.00042061,2]
[418950112,1774624246921,-913.6426266,0.00042061,2]
[418950113,1774624246931,-898.2,0.00042061,2]
[418950114,1774624246940,-913.6426266,0.00042061,2]
[418950115,1774624246949,-898.2,0.00042061,2]
[418950116,1774624246959,-913.6426266,0.00042061,2]
[418950117,1774624246968,-151.81579798,0.00042138,100]
[418950118,1774624246978,-4597.41824728,0.00042239,15]
[418950119,1774624246987,-12341.19834672,0.0004229,4]
[418950161,1774625234139,-1200.0,0.00015999,2]
[418950162,1774625234162,-300.0,0.00015999,2]
[418950163,1774625234184,-1109.87224308,0.00016,15]
[418950166,1774625352088,-8890.12775692,0.00016,15]
[418950167,1774625352109,-300.0,0.00016099,2]
[418950168,1774625352129,-710.0,0.00016111,2]
[418950169,1774625352150,-374.44448109,0.00016111,2]
[418950175,1774625432376,-784.0,0.00016111,2]
[418950176,1774625432386,-607.78,0.00019913,2]
[418950177,1774625432396,-480.0,0.00019999,2]
[418950178,1774625432407,-1634.00758415,0.0002,15]
[418950179,1774625432419,-4114.0,0.0002,15]
[418950180,1774625432431,-888.63598024,0.0002,15]
[418950181,1774625432442,-1555.25933657,0.0002,15]
[418950182,1774625432453,-1351.14592439,0.0002,15]
[418950183,1774625432465,-456.95117465,0.0002,15]
[418950184,1774625432474,-150.0,0.000204,2]
[418950185,1774625432483,-162.67,0.00020543,2]
[418950186,1774625432493,-650.0,0.00021901,2]
[418950187,1774625432502,-151.0,0.00022,2]
[418950188,1774625432511,-100.24127574,0.00023,2]
[418950189,1774625432523,-54.75872426,0.00023,2]
[418950190,1774625432532,-721.01,0.00023658,2]
[418950191,1774625432541,-150.0,0.00024299,30]
[418950192,1774625432550,-417.68,0.00024312,30]
[418950193,1774625432560,-150.0,0.00024658,2]
[418950194,1774625432573,-149.11289798,0.00025,10]
[418950195,1774625432592,-380.0,0.000161,2]
[418950196,1774625435040,-732.5,0.000161,2]
[418950197,1774625435132,-401.62118215,0.000161,2]
[418950198,1774625435143,-17.67881785,0.00025,10]
[418950205,1774625438438,-369.86880755,0.00025,10]
[418950206,1774625438450,-469.73578931,0.00025,10]
[418950207,1774625438529,-720.01455073,0.00025,10]
[418950208,1774625438621,-2190.42,0.00025,10]
[418950209,1774625438632,-1051.74850456,0.00025,10]
[418950210,1774625438644,-5031.42063202,0.00025,10]
[418950211,1774625438653,-500.0,0.00025,2]
[418950212,1774625438662,-500.0,0.00025,2]
[418950213,1774625438672,-588.0,0.00025,10]
[418950214,1774625438681,-500.0,0.00025548,2]
[418950215,1774625438691,-414.08,0.00026809,30]
[418950216,1774625438700,-162.67,0.00027391,2]
[418950217,1774625438709,-414.03,0.00029307,60]
[418950218,1774625438718,-7231.10946283,0.0003,15]
[418950219,1774625438730,-3548.89635205,0.0003,15]
[418950220,1774625438739,-410.2,0.00031804,60]
[418950221,1774625438748,-162.67,0.00034238,2]
[418950222,1774625438758,-410.15,0.00034301,60]
[418950223,1774625438767,-1300.9,0.0003432,2]
[418950224,1774625438777,-151.0,0.00034369,30]
[418950225,1774625438786,-388.0,0.00034369,2]
[418950226,1774625438795,-256.0,0.00035203,120]
[418950227,1774625438805,-151.0,0.00035369,30]
[418950228,1774625438814,-212.99,0.00035842,2]
[418950229,1774625438825,-297.191,0.00036096,2]
[418950230,1774625438836,-165.87,0.00036342,2]
[418950231,1774625438845,-151.0,0.00036369,30]
[418950232,1774625438854,-409.36,0.00036798,60]
[418950233,1774625438864,-151.0,0.00037369,30]
[418950234,1774625438874,-152.782,0.00038321,51]
[418950236,1774625438883,-1052.957,0.00038321,51]
[418950238,1774625438893,-272.0,0.00038356,2]
[418950240,1774625438902,-151.0,0.00038369,30]
[418950242,1774625438912,-408.78,0.00039296,90]
[418950244,1774625438921,-151.0,0.00039369,30]
[418950246,1774625438930,-500.0,0.00039455,2]
[418950248,1774625438940,-469.0,0.00039455,2]
[418950250,1774625438950,-256.0,0.00039603,120]
[418950252,1774625438959,-168.0,0.00040272,2]
[418950254,1774625438968,-200.0,0.00040288,2]
[418950256,1774625438978,-151.0,0.00040369,30]
[418950258,1774625438987,-367.30142349,0.00040457,2]
[418950260,1774625438996,-33482.0767,0.0004065,2]
[418950262,1774625439005,-159.2548014,0.000407,96]
[418950264,1774625439014,-179.64829545,0.000407,96]
[418950266,1774625439023,-177.56807874,0.000407,96]
[418950267,1774625439032,-174.3033845,0.000407,96]
[418950269,1774625439041,-308.35748757,0.000407,96]
[418950271,1774625439051,-399.5633,0.00040712,10]
[418950272,1774625439060,-1294.12,0.0004074,10]
[418950273,1774625439069,-1229.57,0.0004074,10]
[418950274,1774625439079,-12146.75666967,0.0004075,15]
[418950275,1774625439089,-11848.25017341,0.0004075,15]
[418950276,1774625439098,-2017.32882214,0.0004075,28]
[418950277,1774625439107,-2500.0,0.0004075,2]
[418950278,1774625439116,-356.69387292,0.0004084,4]
[418950279,1774625439125,-369.46,0.0004084,2]
[418950280,1774625439135,-500.0,0.00040849,2]
[418950281,1774625439145,-500.0,0.00040849,2]
[418950282,1774625439154,-195538.42550879,0.0004085,2]
[418950283,1774625439167,-384.4517028,0.0004085,2]
[418950284,1774625439178,-341.50968692,0.0004085,2]
[418950285,1774625439189,-4675.14130149,0.0004085,2]
[418950286,1774625439199,-1000.0,0.0004085,120]
[418950287,1774625439209,-1000.0,0.0004085,2]
[418950288,1774625439219,-476.34,0.00040973,30]
[418950289,1774625439228,-500.0,0.00041073,5]
[418950290,1774625439238,-500.0,0.00041073,2]
[418950291,1774625439248,-356.69387292,0.00041075,4]
[418950292,1774625439258,-162.67,0.00041086,2]
[418950293,1774625439267,-500.0,0.00041095,17]
[418950294,1774625439276,-500.0,0.00041095,17]
[418950295,1774625439285,-500.0,0.00041095,2]
[418950296,1774625439294,-1039.6,0.00041095,2]
[418950297,1774625439303,-500.0,0.00041095,17]
[418950298,1774625439313,-27.21407403,0.00041095,2]
[418950299,1774625439326,-472.78592597,0.00041095,2]
[418950300,1774625439335,-500.0,0.00041095,17]
[418950301,1774625439344,-166.33635056,0.00041095,17]
[418950302,1774625439353,-500.0,0.00041095,17]
[418950303,1774625439362,-803.95,0.00041095,17]
[418950304,1774625439373,-500.0,0.00041095,17]
[418950305,1774625439382,-500.0,0.00041095,17]
[418950306,1774625439391,-512.33530909,0.00041095,17]
[418950307,1774625439401,-309.78882563,0.00041095,17]
[418950308,1774625439416,-567.3011842,0.00041095,17]
[418950309,1774625439426,-500.0,0.00041095,17]
[418950310,1774625439437,-500.0,0.00041095,17]
[418950311,1774625439446,-500.0,0.00041095,17]
[418950312,1774625439455,-500.0,0.00041095,17]
[418950313,1774625439465,-386.89957368,0.00041095,17]
[418950314,1774625439475,-500.0,0.00041095,17]
[418950315,1774625439486,-500.0,0.00041095,17]
[418950316,1774625439496,-500.0,0.00041095,17]
[418950317,1774625439508,-406.01647927,0.00041095,17]
[418950318,1774625439519,-500.0,0.00041095,17]
[418950319,1774625439529,-500.0,0.00041095,17]
[418950320,1774625439541,-500.0,0.00041095,17]
[418950321,1774625439551,-500.0,0.00041095,17]
[418950322,1774625439560,-500.0,0.00041095,17]
[418950323,1774625439569,-500.0,0.00041095,17]
[418950324,1774625439578,-520.67625989,0.00041095,17]
[418950325,1774625439587,-500.0,0.00041095,17]
[418950326,1774625439597,-500.0,0.00041095,17]
[418950327,1774625439606,-638.88389585,0.00041095,17]
[418950328,1774625439616,-500.0,0.00041095,7]
[418950329,1774625439626,-594.99338794,0.00041095,17]
[418950330,1774625439635,-500.0,0.00041095,17]
[418950331,1774625439644,-583.62,0.00041095,30]
[418950332,1774625439654,-500.0,0.00041095,17]
[418950333,1774625439663,-945.53,0.00041095,17]
[418950334,1774625439672,-500.0,0.00041095,17]
[418950335,1774625439682,-96.42443944,0.00041095,17]
[418950336,1774625439693,-403.57556056,0.00041095,17]
[418950337,1774625439703,-500.0,0.00041095,17]
[418950338,1774625439712,-500.0,0.00041095,17]
[418950339,1774625439722,-2180.11,0.00041095,2]
[418950340,1774625439732,-525.49089635,0.00041095,17]
[418950341,1774625439742,-500.0,0.00041095,17]
[418950342,1774625439751,-500.0,0.00041095,17]
[418950343,1774625439762,-500.0,0.00041095,17]
[418950344,1774625439771,-500.0,0.00041095,17]
[418950345,1774625439780,-500.0,0.00041095,17]
[418950346,1774625439790,-500.0,0.00041095,17]
[418950347,1774625439799,-500.0,0.00041095,17]
[418950348,1774625439808,-500.0,0.00041095,17]
[418950349,1774625439818,-500.0,0.00041095,17]
[418950350,1774625439827,-500.0,0.00041095,17]
[418950351,1774625439837,-500.0,0.00041095,17]
[418950352,1774625439846,-500.0,0.00041095,17]
[418950353,1774625439857,-500.0,0.00041095,17]
[418950354,1774625439866,-500.0,0.00041095,17]
[418950355,1774625439875,-723.41,0.00041095,17]
[418950356,1774625439884,-500.0,0.00041095,17]
[418950357,1774625439894,-500.0,0.00041095,17]
[418950358,1774625439903,-500.0,0.00041095,17]
[418950359,1774625439913,-500.0,0.00041095,17]
[418950360,1774625439922,-500.0,0.00041095,17]
[418950361,1774625439932,-500.0,0.00041095,17]
[418950362,1774625439941,-527.74769207,0.00041095,17]
[418950363,1774625439951,-500.0,0.00041095,17]
[418950364,1774625439960,-500.0,0.00041095,17]
[418950365,1774625439970,-602.59,0.00041095,17]
[418950366,1774625439980,-474.94319097,0.00041095,17]
[418950367,1774625439990,-500.0,0.00041095,17]
[418950368,1774625440000,-500.0,0.00041095,17]
[418950369,1774625440010,-500.0,0.00041095,17]
[418950370,1774625440020,-1295.23,0.00041095,17]
[418950371,1774625440029,-500.0,0.00041095,17]
[418950372,1774625440038,-500.0,0.00041095,17]
[418950373,1774625440048,-500.0,0.00041095,17]
[418950374,1774625440057,-1478.49,0.00041095,17]
[418950375,1774625440067,-500.0,0.00041095,17]
[418950376,1774625440076,-500.0,0.00041095,17]
[418950377,1774625440086,-500.0,0.00041095,17]
[418950378,1774625440096,-500.0,0.00041095,17]
[418950379,1774625440105,-157.3732901,0.00041095,17]